bitfinex-derivatives/quotes_SOLF0:USTF0_20241009
["timestamp","ask_amount","ask_price","bid_price","bid_amount"]
[1728482717033,34.42,141.24,141.17,5.652]
[1728482717233,37.9629,141.24,141.17,5.652]
[1728482717527,34.42,141.24,141.17,5.652]
[1728482717927,37.9627,141.24,141.17,9.1962]
[1728482719136,7.18,141.24,141.17,5.652]
[1728482719331,34.42,141.24,141.17,2.8547]
[1728482719635,3.66802,141.23,141.17,6.3991]
[1728482719931,3.66802,141.23,141.17,2.8547]
[1728482719932,0.12502,141.23,141.17,2.8547]
[1728482721235,0.12502,141.23,141.18,3.544]
[1728482721529,0.12502,141.23,141.17,2.8547]
[1728482721834,0.12502,141.23,141.19,3.5437]
[1728482722132,0.12502,141.23,141.22,3.5432]
[1728482722431,0.12502,141.29,141.2,27.24]
[1728482722637,3.66672,141.29,141.23,3.5429]
[1728482722937,1.28112416,141.28,141.23,3.5429]
[1728482723135,0.12502,141.29,141.23,3.5429]
[1728482723832,0.12502,141.29,141.21,2.7708]
[1728482724032,27.24,141.27,141.21,2.7708]
[1728482724239,27.24,141.24,141.17,2.97972]
[1728482724438,30.7827,141.24,141.18,3.5442]
[1728482725036,27.24,141.24,141.18,3.5442]
[1728482725237,3.543,141.23,141.18,3.5442]
[1728482726335,3.5432,141.22,141.17,2.97972]
[1728482726534,10.7232,141.22,141.17,2.97972]
[1728482727233,3.5436,141.21,141.17,2.97972]
[1728482727440,3.5436,141.21,141.17,0.12502]
[1728482728234,37.88395325,141.22,141.17,0.12502]
[1728482728544,27.24,141.2,141.17,0.12502]
[1728482728936,3.5439,141.19,141.17,0.12502]
[1728482729132,7.18,141.18,141.17,0.12502]
[1728482729547,10.7242,141.18,141.17,0.12502]
[1728482730444,7.18,141.18,141.17,0.12502]
[1728482731950,3.46395325,141.22,141.17,0.12502]
[1728482732149,77.0629,141.26,141.17,0.12502]
[1728482732346,7.18,141.25,141.17,0.12502]
[1728482732544,76.54,141.26,141.17,0.12502]
[1728482732739,7.18,141.25,141.19,3.5438]
[1728482732950,7.18,141.25,141.17,0.12502]
[1728482732951,7.18,141.25,141.2,2.7571]
[1728482733347,7.18,141.25,141.21,3.5434]
[1728482733757,7.30502,141.29,141.2,29.9971]
[1728482733958,7.30502,141.29,141.21,5.5547]
[1728482734353,10.84642,141.29,141.24,3.5425]
[1728482734553,7.30502,141.29,141.21,5.5547]
[1728482734755,3.5421,141.27,141.21,5.5547]
[1728482735055,3.5421,141.27,141.23,3.5427]
[1728482735252,7.30502,141.29,141.21,5.5547]
[1728482735453,3.5418,141.28,141.24,3.5425]
[1728482735651,7.30502,141.29,141.21,5.5547]
[1728482735853,34.54502,141.29,141.21,5.5547]
[1728482736052,3.5423,141.26,141.22,3.5431]
[1728482736359,7.18,141.25,141.2,2.7571]
[1728482736658,7.18,141.25,141.17,3.03692]
[1728482737059,10.7226,141.25,141.21,3.5433]
[1728482737562,7.18,141.25,141.17,3.03692]
[1728482737749,7.18,141.25,141.23,3.5427]
[1728482738357,7.18,141.25,141.18,34.42]
[1728482738555,7.18,141.25,141.24,3.5427]
[1728482739859,3.5417,141.28,141.25,3.5424]
[1728482740356,3.5417,141.28,141.24,3.5426]
[1728482740556,7.30502,141.29,141.24,3.5426]
[1728482740557,3.5419,141.27,141.24,3.5426]
[1728482740757,7.30502,141.29,141.24,3.5426]
[1728482741865,3.5418,141.28,141.24,3.5426]
[1728482742065,3.5418,141.28,141.21,2.6954]
[1728482742262,7.30502,141.29,141.23,3.5428]
[1728482742470,7.30502,141.29,141.22,2.8634]
[1728482743461,10.84652,141.29,141.22,2.8634]
[1728482744261,7.30502,141.29,141.25,3.5423]
[1728482744955,34.54502,141.29,141.22,2.8634]
[1728482745157,27.24,141.27,141.21,2.6954]
[1728482745758,3.5428,141.24,141.21,2.6954]
[1728482745955,6.8,141.25,141.21,2.6954]
[1728482746360,10.3426,141.25,141.21,6.2387]
[1728482746862,10.3426,141.25,141.21,2.6954]
[1728482747066,6.8,141.25,141.21,2.6954]
[1728482747558,6.8,141.25,141.22,3.5431]
[1728482748368,6.8,141.25,141.21,2.6954]
[1728482748765,3.5427,141.24,141.21,2.6954]
[1728482749062,27.24,141.24,141.18,2.9161]
[1728482749262,27.24,141.27,141.18,5.5728]
[1728482749464,6.8,141.26,141.18,5.5728]
[1728482749660,3.5426,141.25,141.18,5.5728]
[1728482749862,6.8,141.26,141.18,5.5728]
[1728482750261,6.8,141.28,141.18,32.8128]
[1728482750867,3.66642,141.29,141.26,3.5419]
[1728482751060,3.66642,141.29,141.21,27.24]
[1728482751061,6.92502,141.29,141.23,2.0]
[1728482751464,3.5419,141.28,141.25,3.5424]
[1728482752171,0.12502,141.29,141.23,2.0]
[1728482752470,0.12502,141.29,141.24,2.7775]
[1728482752670,0.12502,141.29,141.28,3.5417]
[1728482753969,0.12502,141.29,141.26,3.5421]
[1728482754162,0.12502,141.29,141.25,5.3271]
[1728482754664,0.12502,141.29,141.25,2.6619]
[1728482755168,3.66652,141.29,141.25,6.2042]
[1728482755362,3.66652,141.29,141.25,2.6619]
[1728482756468,3.66652,141.29,141.26,3.5422]
[1728482757163,0.12502,141.29,141.26,3.5422]
[1728482757364,0.12502,141.29,141.27,3.5418]
[1728482758068,0.12502,141.29,141.28,3.5417]
[1728482758465,0.12502,141.29,141.26,2.0]
[1728482759363,34.16502,141.29,141.26,2.0]
[1728482760373,3.5419,141.27,141.26,2.0]
[1728482760673,6.92502,141.29,141.26,2.0]
[1728482760869,6.92502,141.29,141.27,3.5417]
[1728482761071,6.92502,141.29,141.26,2.0]
[1728482761570,3.5417,141.28,141.26,2.0]
[1728482761965,3.5417,141.28,141.25,3.5423]
[1728482761966,27.24,141.27,141.21,2.6652]
[1728482762166,27.24,141.27,141.2,5.5297]
[1728482762665,3.5431,141.23,141.2,5.5297]
[1728482762973,10.3431,141.23,141.2,5.5297]
[1728482763365,3.5434,141.21,141.18,3.5441]
[1728482763961,3.5434,141.21,141.17,3.66932]
[1728482764163,3.5434,141.21,141.18,5.38805621]
[1728482764469,3.5434,141.21,141.18,3.5441]
[1728482765170,3.5433,141.22,141.18,3.5441]
[1728482766173,10.3431,141.23,141.2,3.5435]
[1728482766676,6.8,141.23,141.2,3.5435]
[1728482767664,6.8,141.23,141.17,0.12502]
[1728482767866,0.12502,141.29,141.19,27.24]
[1728482768074,6.8,141.27,141.2,5.38861535]
[1728482768271,6.8,141.27,141.25,3.5423]
[1728482768578,6.8,141.27,141.19,30.75687329]
[1728482768773,3.5431,141.23,141.2,15.0392717]
[1728482768968,3.5431,141.23,141.21,5.38701151]
[1728482769276,3.5431,141.23,141.2,3.5436]
[1728482769487,3.5427,141.24,141.21,3.5434]
[1728482769778,34.04,141.27,141.17,6.92502]
[1728482769969,27.24,141.25,141.18,5.38816815]
[1728482770171,3.47576513,141.24,141.17,0.12502]
[1728482770373,6.8,141.23,141.18,5.38833824]
[1728482770568,6.8,141.23,141.17,0.12502]
[1728482771181,3.5437,141.2,141.17,0.12502]
[1728482771480,6.8,141.23,141.17,0.12502]
[1728482772881,6.8,141.23,141.17,0.12502]
[1728482773379,28.3481,141.27,141.17,0.12502]
[1728482773680,27.36502,141.29,141.18,42.23513059]
[1728482773876,6.8,141.28,141.2,27.24]
[1728482774177,6.8,141.28,141.24,3.5425]
[1728482774483,6.8,141.28,141.2,27.24]
[1728482774681,6.8,141.28,141.21,5.38781473]
[1728482774886,6.8,141.28,141.2,27.24]
[1728482775080,6.8,141.28,141.21,5.38771551]
[1728482775282,6.8,141.28,141.22,5.38771551]
[1728482775582,0.12502,141.35,141.25,27.24]
[1728482775883,0.12502,141.35,141.27,27.24]
[1728482776177,3.5403,141.34,141.3,3.5411]
[1728482776681,0.12502,141.35,141.27,27.24]
[1728482776884,3.66502,141.35,141.31,3.5407]
[1728482777291,3.5402,141.34,141.29,3.5412]
[1728482777586,0.12502,141.35,141.27,27.24]
[1728482777776,6.92502,141.35,141.28,11.48895718]
[1728482777972,3.5402,141.34,141.3,3.541]
[1728482778380,6.92502,141.35,141.27,27.24]
[1728482778581,6.92502,141.35,141.28,11.48617474]
[1728482778773,6.92502,141.35,141.24,6.8]
[1728482778978,6.92502,141.35,141.25,33.34472756]
[1728482779174,3.5405,141.33,141.29,3.5412]
[1728482779383,6.92502,141.35,141.29,3.5412]
[1728482779681,3.5403,141.34,141.3,3.541]
[1728482780074,6.92502,141.35,141.3,3.541]
[1728482780276,3.5404,141.33,141.3,3.541]
[1728482781284,6.92502,141.35,141.25,27.24]
[1728482781486,27.24,141.34,141.26,11.48446996]
[1728482781787,27.24,141.34,141.24,6.8]
[1728482781788,3.57671427,141.33,141.24,6.8]
[1728482781990,3.5413,141.3,141.26,3.542]
[1728482782990,34.04,141.31,141.24,3.5424]
[1728482783196,34.04,141.31,141.23,5.80762]
[1728482783197,27.24,141.29,141.23,5.80762]
[1728482783484,6.8,141.31,141.23,0.12502]
[1728482783485,30.7827,141.24,141.23,0.12502]
[1728482783676,37.50302724,141.24,141.17,0.12502]
[1728482784080,27.24,141.22,141.17,0.12502]
[1728482785188,37.50302724,141.24,141.17,0.12502]
[1728482785984,27.24,141.2,141.17,0.12502]
[1728482786290,3.5442,141.18,141.17,0.12502]
[1728482786689,6.8,141.19,141.17,0.12502]
[1728482787589,6.8,141.19,141.18,3.5442]
[1728482787781,6.8,141.19,141.17,0.12502]
[1728482788895,10.3433,141.22,141.18,3.5442]
[1728482789091,10.3433,141.22,141.17,0.12502]
[1728482789092,6.8,141.22,141.17,0.12502]
[1728482789291,6.8,141.22,141.19,3.5439]
[1728482789792,3.5425,141.25,141.21,3.5433]
[1728482789998,6.8,141.24,141.17,0.12502]
[1728482790387,3.5432,141.22,141.18,3.5441]
[1728482790697,6.8,141.24,141.17,0.12502]
[1728482791096,27.24,141.27,141.17,0.12502]
[1728482791299,6.8,141.26,141.17,0.12502]
[1728482791490,3.5427,141.24,141.2,3.5435]
[1728482791892,6.8,141.24,141.17,30.86984435]
[1728482792198,6.8,141.24,141.23,3.5427]
[1728482792395,6.8,141.24,141.17,27.36502]
[1728482792696,6.8,141.24,141.22,3.543]
[1728482792896,3.5422,141.26,141.22,3.543]
[1728482793097,10.3422,141.26,141.22,3.543]
[1728482793599,10.3422,141.26,141.17,30.97509539]
[1728482793799,10.3422,141.26,141.23,3.5428]
[1728482794399,6.8,141.26,141.2,2.8798]
[1728482794602,6.8,141.26,141.21,5.3499]
[1728482795206,10.3422,141.26,141.23,3.5427]
[1728482795503,6.8,141.26,141.21,5.3499]
[1728482795697,3.5425,141.25,141.23,3.5428]
[1728482795889,6.8,141.26,141.21,5.3499]
[1728482796087,6.8,141.26,141.17,27.36502]
[1728482796299,6.8,141.26,141.17,0.12502]
[1728482796300,27.24,141.25,141.17,0.12502]
[1728482796496,3.62125699,141.24,141.17,0.12502]
[1728482796799,6.8,141.26,141.17,0.12502]
[1728482796990,6.8,141.26,141.17,27.36502]
[1728482797193,6.8,141.26,141.18,6.1076496]
[1728482797390,10.3422,141.26,141.17,30.85530911]
[1728482797598,3.5422,141.26,141.18,12.90798325]
[1728482797899,3.5422,141.26,141.19,33.34798325]
[1728482798208,3.5422,141.26,141.2,6.10908769]
[1728482798499,3.5422,141.26,141.19,27.24]
[1728482798800,6.8,141.27,141.24,3.5426]
[1728482799300,10.3421,141.27,141.24,3.5426]
[1728482800493,6.8,141.27,141.19,27.24]
[1728482800700,6.8,141.27,141.22,3.5431]
[1728482800896,6.8,141.27,141.18,6.8]
[1728482801197,3.5423,141.26,141.23,3.5429]
[1728482801697,3.5425,141.25,141.22,3.543]
[1728482802498,3.5423,141.26,141.24,3.5426]
[1728482802695,6.8,141.27,141.24,3.5426]
[1728482802998,10.3421,141.27,141.24,3.5426]
[1728482804113,10.3421,141.27,141.18,6.8]
[1728482804114,0.12502,141.29,141.22,27.24]
[1728482804406,0.12502,141.29,141.23,11.4218945]
[1728482804407,6.90502,141.29,141.23,11.4218945]
[1728482804593,6.90502,141.29,141.23,5.3114]
[1728482804997,10.44672,141.29,141.24,3.5425]
[1728482805199,10.44672,141.29,141.23,5.3114]
[1728482805596,6.90502,141.29,141.23,5.3114]
[1728482805927,0.12502,141.29,141.24,27.24]
[1728482806113,0.12502,141.29,141.25,8.8979652]
[1728482806408,0.12502,141.29,141.25,2.788]
[1728482806607,0.12502,141.35,141.25,6.30256552]
[1728482806908,6.90502,141.35,141.27,27.24]
[1728482807099,10.44502,141.35,141.32,3.5405]
[1728482807496,0.12502,141.35,141.27,30.74481874]
[1728482807701,0.12502,141.35,141.32,3.5405]
[1728482807702,3.66512,141.35,141.32,3.5405]
[1728482807904,0.12502,141.35,141.27,37.52481874]
[1728482808100,0.12502,141.35,141.3,3.541]
[1728482808101,3.5406,141.33,141.3,3.541]
[1728482808398,3.5406,141.33,141.27,6.78]
[1728482808805,3.5406,141.33,141.31,3.5409]
[1728482809011,0.12502,141.35,141.31,3.5409]
[1728482809304,0.12502,141.35,141.29,27.24]
[1728482809615,0.12502,141.35,141.34,3.5402]
[1728482810703,6.78,141.39,141.3,2.6553]
[1728482810901,6.78,141.39,141.31,40.1198548]
[1728482811101,0.12502,141.41,141.34,27.24]
[1728482811296,0.12502,141.41,141.39,3.5388]
[1728482812006,0.12502,141.41,141.4,3.5387]
[1728482813019,0.12502,141.41,141.38,3.5391]
[1728482813311,0.12502,141.41,141.3,2.6553]
[1728482813312,27.36502,141.41,141.31,6.78]
[1728482813504,27.36502,141.41,141.31,9.6427]
[1728482814203,3.5392,141.38,141.34,3.5402]
[1728482815404,10.319,141.39,141.35,3.5398]
[1728482817008,10.319,141.39,141.36,3.5397]
[1728482817212,6.78,141.39,141.36,3.5397]
[1728482817405,6.78,141.39,141.32,2.8205]
[1728482818212,0.12502,141.41,141.38,3.5392]
[1728482818409,0.12502,141.41,141.34,27.24]
[1728482820013,3.66362,141.41,141.38,3.5392]
[1728482820218,0.12502,141.41,141.32,2.8205]
[1728482820514,27.36502,141.41,141.32,2.8205]
[1728482820816,0.12502,141.41,141.32,2.8205]
[1728482821315,27.24,141.38,141.32,2.8205]
[1728482821617,10.27848132,141.37,141.3,2.6553]
[1728482821816,27.24,141.36,141.3,2.6553]
[1728482822119,27.24,141.36,141.27,12.3816]
[1728482822806,3.5402,141.34,141.29,3.66632]
[1728482823007,27.24,141.36,141.29,0.12502]
[1728482823503,3.5402,141.34,141.3,3.5411]
[1728482824314,3.5402,141.34,141.31,3.5409]
[1728482824916,6.78,141.37,141.29,0.12502]
[1728482825420,27.24,141.4,141.29,0.12502]
[1728482825609,3.5395,141.37,141.33,3.5403]
[1728482825818,6.78,141.39,141.29,0.12502]
[1728482826119,3.5395,141.37,141.34,3.5402]
[1728482826323,6.78,141.39,141.29,0.12502]
[1728482826908,6.90502,141.41,141.33,27.24]
[1728482827116,6.90502,141.41,141.34,8.3084]
[1728482827419,0.12502,141.41,141.34,8.3084]
[1728482827614,0.12502,141.41,141.34,11.78343934]
[1728482827925,0.12502,141.41,141.4,3.5387]
[1728482829018,0.12502,141.47,141.38,27.24]
[1728482829320,0.12502,141.47,141.4,27.24]
[1728482829621,0.12502,141.47,141.44,3.5376]
[1728482830624,0.12502,141.47,141.41,5.495]
[1728482830921,0.12502,141.47,141.45,3.5372]
[1728482831318,0.12502,141.47,141.44,3.5375]
[1728482831535,0.12502,141.47,141.41,5.495]
[1728482831919,3.5374,141.45,141.42,3.5381]
[1728482832317,6.90502,141.47,141.41,2.8356]
[1728482832620,3.5377,141.44,141.41,2.8356]
[1728482832818,6.90502,141.47,141.4,6.78]
[1728482833019,3.5381,141.43,141.4,3.5386]
[1728482833215,27.24,141.46,141.37,9.6867]
[1728482833418,3.5374,141.46,141.42,3.538]
[1728482833717,6.90502,141.47,141.42,3.538]
[1728482833921,3.5377,141.44,141.4,3.5387]
[1728482834428,34.14502,141.47,141.38,2.9051]
[1728482834613,3.5381,141.43,141.38,2.9051]
[1728482835123,3.5381,141.43,141.4,3.5385]
[1728482835318,34.14502,141.47,141.38,2.9051]
[1728482835515,3.5385,141.41,141.38,2.9051]
[1728482835728,34.14502,141.47,141.38,2.9051]
[1728482836621,3.5376,141.45,141.41,3.5382]
[1728482836822,6.90502,141.47,141.41,3.5382]
[1728482837323,3.5376,141.45,141.41,3.5382]
[1728482837530,6.90502,141.47,141.38,2.9051]
[1728482837725,3.5372,141.46,141.38,2.9051]
[1728482838028,6.90502,141.47,141.38,2.9051]
[1728482838222,6.90502,141.47,141.4,27.24]
[1728482838422,0.12502,141.47,141.4,27.24]
[1728482839626,0.12502,141.47,141.44,3.5375]
[1728482839831,0.12502,141.47,141.4,27.24]
[1728482840128,0.12502,141.47,141.42,27.24]
[1728482841031,0.12502,141.47,141.42,30.86421221]
[1728482841431,0.12518,141.48,141.44,27.24]
[1728482841725,0.12518,141.48,141.47,3.5369]
[1728482842129,3.66062,141.53,141.5,3.536]
[1728482842431,3.66062,141.53,141.45,5.5169]
[1728482842432,0.12502,141.53,141.45,5.5169]
[1728482843133,3.5359,141.52,141.49,3.5364]
[1728482843524,0.12502,141.53,141.49,3.5364]
[1728482843728,3.5358,141.52,141.49,3.5364]
[1728482844219,3.66052,141.53,141.5,3.5361]
[1728482844424,0.12502,141.53,141.47,34.0]
[1728482845230,3.66062,141.53,141.5,3.536]
[1728482845435,0.12502,141.53,141.5,3.536]
[1728482846231,3.5358,141.52,141.49,3.5363]
[1728482846736,0.12502,141.53,141.47,34.0]
[1728482846737,0.12502,141.53,141.47,6.76]
[1728482847032,6.88502,141.53,141.46,2.8765]
[1728482847439,6.88502,141.53,141.49,3.5364]
[1728482847440,3.5358,141.52,141.49,3.5364]
[1728482848137,6.88502,141.53,141.48,3.5365]
[1728482848138,3.5359,141.51,141.48,3.5365]
[1728482848337,3.5359,141.51,141.45,5.5169]
[1728482848338,34.12502,141.53,141.45,5.5169]
[1728482848531,3.5367,141.48,141.45,9.0542]
[1728482848839,6.88502,141.53,141.45,5.5169]
[1728482849026,0.12502,141.53,141.45,5.5169]
[1728482849222,0.12502,141.53,141.45,32.7569]
[1728482849426,0.12502,141.53,141.46,2.8716]
[1728482849634,3.66072,141.53,141.49,3.5363]
[1728482849832,0.12502,141.53,141.46,2.8716]
[1728482850230,3.66052,141.53,141.5,3.536]
[1728482852740,0.12502,141.53,141.46,2.8716]
[1728482853930,3.66062,141.53,141.46,2.8716]
[1728482854434,0.12502,141.53,141.46,2.8716]
[1728482855431,3.5358,141.52,141.48,3.5366]
[1728482855637,0.12502,141.53,141.48,3.5366]
[1728482856040,3.5361,141.51,141.48,3.5366]
[1728482860146,0.12502,141.53,141.46,2.8716]
[1728482860349,27.24,141.49,141.38,103.66]
[1728482860550,6.76,141.49,141.4,27.24]
[1728482860751,3.5368,141.48,141.45,3.5372]
[1728482861246,10.2965,141.49,141.46,3.5369]
[1728482861448,6.76,141.52,141.43,6.76]
[1728482862342,3.5359,141.51,141.48,3.5365]
[1728482862749,6.76,141.52,141.43,10.2550581]
[1728482863652,3.5364,141.5,141.43,10.2550581]
[1728482864052,3.5364,141.5,141.47,3.5369]
[1728482864455,3.5364,141.49,141.47,3.5369]
[1728482864694,6.76,141.52,141.43,10.2550581]
[1728482865050,3.5365,141.49,141.46,3.5371]
[1728482865259,6.76,141.52,141.45,27.24]
[1728482865457,6.76,141.52,141.46,5.5545]
[1728482865665,3.5361,141.51,141.46,5.5545]
[1728482865960,6.76,141.52,141.46,5.5545]
[1728482866452,6.76,141.52,141.46,22.5445]
[1728482866760,3.5359,141.51,141.48,3.5365]
[1728482870579,3.5369,141.48,141.46,5.5545]
[1728482870754,3.5369,141.48,141.45,3.5374]
[1728482870961,16.99,141.51,141.42,9.2981437]
[1728482871259,16.99,141.49,141.42,5.6792]
[1728482871461,27.31109628,141.49,141.42,5.6792]
[1728482871655,3.5369,141.48,141.45,3.5373]
[1728482871858,27.31109628,141.49,141.45,3.5373]
[1728482872153,27.31109628,141.49,141.42,5.6792]
[1728482872353,16.99,141.47,141.42,5.6792]
[1728482873060,3.5373,141.46,141.42,5.6792]
[1728482873968,3.5373,141.46,141.43,3.5378]
[1728482877069,3.5374,141.45,141.43,3.5378]
[1728482877272,27.31109628,141.49,141.43,3.5378]
[1728482877768,27.31109628,141.49,141.45,3.5374]
[1728482878073,23.75,141.49,141.45,3.5374]
[1728482878260,7.19602,141.53,141.42,9.21982278]
[1728482878261,16.99,141.51,141.42,9.21982278]
[1728482878461,6.76,141.51,141.43,16.99]
[1728482878967,3.5362,141.5,141.47,3.5368]
[1728482880468,0.12502,141.53,141.46,16.99]
[1728482881068,3.66052,141.53,141.48,3.5365]
[1728482881273,0.12502,141.53,141.47,2.7652]
[1728482881676,3.66062,141.53,141.48,2.6552]
[1728482881874,0.12502,141.53,141.48,19.6452]
[1728482882072,0.12502,141.53,141.49,2.8369]
[1728482882270,0.12502,141.53,141.52,3.5357]
[1728482883872,6.76,141.57,141.53,3.5352]
[1728482884070,6.76,141.57,141.5,16.99]
[1728482884270,6.76,141.57,141.49,2.8369]
[1728482884271,16.99,141.55,141.49,2.8369]
[1728482884475,3.5362,141.5,141.48,2.6552]
[1728482884677,6.76,141.53,141.48,2.6552]
[1728482885179,3.5358,141.52,141.48,6.1918]
[1728482885673,6.76,141.53,141.51,3.5358]
[1728482885878,3.60331904,141.58,141.48,2.6552]
[1728482885879,16.99,141.57,141.48,19.6452]
[1728482886180,6.76,141.56,141.48,19.6452]
[1728482886388,3.535,141.55,141.48,19.6452]
[1728482887077,3.535,141.55,141.52,3.5356]
[1728482887872,10.2949,141.56,141.52,3.5356]
[1728482889073,3.65912,141.59,141.55,3.5347]
[1728482889272,3.65912,141.59,141.52,20.48608084]
[1728482889786,0.12502,141.59,141.56,3.5346]
[1728482889969,0.12502,141.59,141.52,20.48608084]
[1728482889970,0.12502,141.59,141.54,16.99]
[1728482890175,0.12502,141.59,141.55,2.7241]
[1728482890780,0.12502,141.59,141.55,5.6329]
[1728482891282,0.12502,141.59,141.56,2.8148]
[1728482892082,0.12502,141.59,141.57,3.5344]
[1728482892274,0.12502,141.59,141.56,19.8048]
[1728482892475,16.99,141.66,141.56,19.8048]
[1728482892982,3.5329,141.63,141.56,19.8048]
[1728482893184,16.99,141.66,141.56,19.8048]
[1728482893583,3.5331,141.63,141.59,3.5338]
[1728482894381,3.5331,141.63,141.6,3.5337]
[1728482894778,3.5328,141.64,141.6,3.5337]
[1728482894979,16.99,141.66,141.6,3.5337]
[1728482895281,3.5328,141.64,141.6,3.5337]
[1728482895485,16.99,141.66,141.56,19.8048]
[1728482895486,23.73,141.66,141.61,3.5332]
[1728482895678,23.73,141.66,141.58,16.99]
[1728482895879,3.533,141.63,141.57,16.99]
[1728482896079,16.99,141.63,141.56,2.8148]
[1728482896275,3.49562567,141.64,141.56,2.8148]
[1728482896480,3.533,141.63,141.56,2.8148]
[1728482896679,3.49562567,141.64,141.57,16.99]
[1728482897082,16.99,141.62,141.56,6.3494]
[1728482897389,23.73,141.62,141.55,2.7241]
[1728482897591,3.534,141.59,141.55,2.7241]
[1728482897791,16.99,141.6,141.55,2.7241]
[1728482897991,16.99,141.6,141.53,0.12502]
[1728482898179,16.99,141.58,141.53,0.12502]
[1728482898384,23.73,141.58,141.53,0.12502]
[1728482899689,16.99,141.56,141.53,0.12502]
[1728482899891,3.5352,141.54,141.53,0.12502]
[1728482900393,20.5252,141.54,141.53,0.12502]
[1728482900587,3.60785537,141.56,141.47,0.12502]
[1728482900588,3.5361,141.51,141.47,0.12502]
[1728482900888,16.99,141.52,141.48,6.09727675]
[1728482901081,16.99,141.52,141.47,0.12502]
[1728482901286,16.99,141.52,141.48,6.09755003]
[1728482901484,23.73,141.54,141.47,0.12502]
[1728482901797,6.74,141.54,141.48,23.08866577]
[1728482901981,6.74,141.54,141.47,6.86502]
[1728482902188,6.74,141.54,141.48,6.0986125]
[1728482902383,6.74,141.54,141.47,6.86502]
[1728482902384,3.5357,141.53,141.47,6.86502]
[1728482902591,3.5357,141.53,141.49,3.5363]
[1728482903095,6.74,141.54,141.47,6.86502]
[1728482903295,6.74,141.54,141.48,6.10236547]
[1728482903296,23.73,141.54,141.48,6.10236547]
[1728482903495,16.99,141.52,141.49,6.10236547]
[1728482903696,16.99,141.5,141.47,0.12502]
[1728482903896,16.99,141.5,141.48,6.10351122]
[1728482904092,3.5366,141.49,141.47,0.12502]
[1728482904293,16.99,141.52,141.48,6.10386016]
[1728482904500,27.16,141.53,141.47,0.12502]
[1728482904696,27.16,141.53,141.48,6.10309907]
[1728482904895,3.5363,141.5,141.47,0.12502]
[1728482905095,3.5363,141.5,141.48,6.10204831]
[1728482905287,27.16,141.53,141.47,0.12502]
[1728482905488,10.2482103,141.56,141.47,0.12502]
[1728482905694,6.74,141.56,141.47,2.79222]
[1728482905893,6.74,141.56,141.47,9.53222]
[1728482906099,3.535,141.55,141.51,3.5357]
[1728482906396,6.74,141.56,141.47,9.53222]
[1728482906597,3.535,141.55,141.51,3.5358]
[1728482906796,6.74,141.56,141.47,9.53222]
[1728482906993,6.74,141.56,141.48,6.10411085]
[1728482907194,6.74,141.56,141.47,9.53222]
[1728482907195,3.535,141.55,141.51,3.5358]
[1728482907396,6.74,141.56,141.47,9.53222]
[1728482907591,6.74,141.56,141.48,6.1059891]
[1728482907793,3.5352,141.54,141.5,3.5361]
[1728482908191,6.74,141.56,141.5,3.5361]
[1728482908392,3.5355,141.53,141.5,3.5362]
[1728482908586,3.5355,141.53,141.47,9.53222]